[Event "Fast Chess"]
[Site "ChessKid.com"]
[Date "2020.04.29"]
[Round "1"]
[White "Horvath, Alexander"]
[Black "Dai, Lana"]
[Result "0-1"]
[ECO "C55"]
[WhiteElo "1309"]
[BlackElo "1299"]
[PlyCount "118"]
[EventDate "2020.??.??"]
[TimeControl "600"]
[WhiteClock "0:03:27"]
[BlackClock "0:05:56"]

1. e4 {[%emt 0:00:02]} e5 {[%emt 0:00:02]} 2. Nf3 {[%emt 0:00:02]} Nc6 {
[%emt 0:00:02]} 3. Bc4 {[%emt 0:00:02]} Nf6 {[%emt 0:00:03]} 4. Nc3 {[%emt 0:
00:01]} h6 {[%emt 0:00:02]} 5. d3 {[%emt 0:00:02]} a6 {[%emt 0:00:02]} 6. Be3 {
[%emt 0:00:01]} Bb4 {[%emt 0:00:05]} 7. O-O {[%emt 0:00:02]} d6 {[%emt 0:00:03]
} 8. Nd5 {[%emt 0:00:03]} Nxd5 {[%emt 0:00:04]} 9. exd5 {[%emt 0:00:01]} b5 {
[%emt 0:00:10]} 10. Bxb5 {[%emt 0:00:05]} axb5 {[%emt 0:00:02]} 11. dxc6 {
[%emt 0:00:01]} Bg4 {[%emt 0:00:07]} 12. c3 {[%emt 0:00:02]} Bc5 {[%emt 0:00:
04]} 13. Bxc5 {[%emt 0:00:05]} dxc5 {[%emt 0:00:01]} 14. Re1 {[%emt 0:00:04]}
O-O {[%emt 0:00:19]} 15. h3 {[%emt 0:00:05]} Bh5 {[%emt 0:00:05]} 16. Rxe5 {
[%emt 0:00:17]} Bxf3 {[%emt 0:00:14]} 17. Qxf3 {[%emt 0:00:04]} Qd6 {[%emt 0:
00:05]} 18. Qg3 {[%emt 0:00:04]} c4 {[%emt 0:00:19]} 19. dxc4 {[%emt 0:00:08]}
bxc4 {[%emt 0:00:02]} 20. Rae1 {[%emt 0:00:06]} Qxc6 {[%emt 0:00:24]} 21. Rh5 {
[%emt 0:00:05]} Qd6 {[%emt 0:00:34]} 22. Ree5 {[%emt 0:00:14]} Rfe8 {[%emt 0:
00:14]} 23. Rxh6 $4 {[%emt 0:00:07]} Qxh6 {[%emt 0:00:06]} 24. Rxe8+ {[%emt 0:
00:09]} Rxe8 {[%emt 0:00:04]} 25. Qxc7 {[%emt 0:00:02]} Re1+ {[%emt 0:00:08]}
26. Kh2 {[%emt 0:00:01]} Re8 {[%emt 0:00:16]} 27. a4 {[%emt 0:00:03]} Qe6 {
[%emt 0:00:18]} 28. a5 {[%emt 0:00:04]} Rc8 {[%emt 0:00:01]} 29. Qb7 {[%emt 0:
00:11]} Qd6+ {[%emt 0:00:05]} 30. g3 {[%emt 0:00:02]} Rb8 {[%emt 0:00:06]} 31.
Qa7 {[%emt 0:00:15]} Qe5 {[%emt 0:00:31]} 32. a6 {[%emt 0:00:05]} Qd6 {[%emt 0:
00:18]} 33. h4 {[%emt 0:00:18]} Qb6 {[%emt 0:00:11]} 34. Qxb6 {[%emt 0:00:19]}
Rxb6 {[%emt 0:00:01]} 35. a7 {[%emt 0:00:00]} Ra6 {[%emt 0:00:01]} 36. a8=Q+ {
[%emt 0:00:01]} Rxa8 {[%emt 0:00:01]} 37. f4 {[%emt 0:00:04]} Ra2 {[%emt 0:00:
04]} 38. g4 {[%emt 0:00:03]} Rxb2+ {[%emt 0:00:02]} 39. Kg3 {[%emt 0:00:00]}
Rb3 {[%emt 0:00:02]} 40. f5 {[%emt 0:00:01]} Rxc3+ {[%emt 0:00:01]} 41. Kf4 {
[%emt 0:00:01]} f6 {[%emt 0:00:06]} 42. g5 {[%emt 0:00:01]} Ra3 {[%emt 0:00:04]
} 43. h5 {[%emt 0:00:03]} fxg5+ {[%emt 0:00:02]} 44. Kxg5 {[%emt 0:00:02]} Rg3+
{[%emt 0:00:06]} 45. Kh4 {[%emt 0:00:02]} Rf3 {[%emt 0:00:02]} 46. Kg4 {
[%emt 0:00:03]} Rf1 {[%emt 0:00:04]} 47. Kg5 {[%emt 0:00:03]} c3 {[%emt 0:00:
07]} 48. h6 {[%emt 0:00:03]} gxh6+ {[%emt 0:00:04]} 49. Kxh6 {[%emt 0:00:01]}
Rxf5 {[%emt 0:00:05]} 50. Kg6 {[%emt 0:00:01]} Ra5 {[%emt 0:00:04]} 51. Kf6 {
[%emt 0:00:02]} c2 {[%emt 0:00:03]} 52. Ke6 {[%emt 0:00:01]} c1=R {[%emt 0:00:
03]} 53. Kd6 {[%emt 0:00:02]} Rh1 {[%emt 0:00:04]} 54. Kc6 {[%emt 0:00:02]}
Rh6+ {[%emt 0:00:02]} 55. Kb7 {[%emt 0:00:01]} Rg5 {[%emt 0:00:04]} 56. Kc7 {
[%emt 0:00:02]} Rg7+ {[%emt 0:00:01]} 57. Kd8 {[%emt 0:00:01]} Rd6+ {[%emt 0:
00:06]} 58. Ke8 {[%emt 0:00:07]} Kh7 {[%emt 0:00:10]} 59. Kf8 {[%emt 0:00:07]}
Rd8# {[%emt 0:00:02] TopBrownCave won by checkmate} 0-1

[Event "Fast Chess"]
[Site "ChessKid.com"]
[Date "2020.04.29"]
[Round "2"]
[White "Dai, Lana"]
[Black "Li, Tobias"]
[Result "1-0"]
[ECO "C47"]
[WhiteElo "1308"]
[BlackElo "1297"]
[PlyCount "57"]
[EventDate "2020.??.??"]
[TimeControl "600"]
[WhiteClock "0:07:40"]
[BlackClock "0:06:08"]

1. e4 {[%emt 0:00:02]} e5 {[%emt 0:00:01]} 2. Nf3 {[%emt 0:00:02]} Nc6 {
[%emt 0:00:01]} 3. Nc3 {[%emt 0:00:01]} Bc5 {[%emt 0:00:02]} 4. h3 {[%emt 0:00:
04]} Nf6 {[%emt 0:00:01]} 5. a3 {[%emt 0:00:01]} a6 {[%emt 0:00:02]} 6. Bc4 {
[%emt 0:00:02]} h6 {[%emt 0:00:02]} 7. b4 {[%emt 0:00:02]} Bd4 {[%emt 0:00:01]}
8. Nxd4 {[%emt 0:00:03]} exd4 {[%emt 0:00:05]} 9. Nd5 {[%emt 0:00:03]} Nxd5 {
[%emt 0:00:04]} 10. Bxd5 {[%emt 0:00:01]} O-O {[%emt 0:00:02]} 11. d3 {[%emt 0:
00:02]} d6 {[%emt 0:00:06]} 12. O-O {[%emt 0:00:06]} Re8 {[%emt 0:00:02]} 13.
Bxc6 {[%emt 0:00:07]} b6 {[%emt 0:00:02]} 14. Bxa8 {[%emt 0:00:02]} Be6 {
[%emt 0:00:03]} 15. Bc6 {[%emt 0:00:06]} Re7 {[%emt 0:00:04]} 16. Qf3 {[%emt 0:
00:17]} Qb8 {[%emt 0:00:19]} 17. Qg3 {[%emt 0:00:08]} Kh7 {[%emt 0:00:09]} 18.
Qh4 {[%emt 0:00:16]} f6 {[%emt 0:00:05]} 19. Qh5 {[%emt 0:00:14]} b5 {[%emt 0:
00:04]} 20. Bd5 {[%emt 0:00:31]} Bxd5 {[%emt 0:00:06]} 21. Qxd5 {[%emt 0:00:08]
} Re5 {[%emt 0:00:10]} 22. Qf7 {[%emt 0:00:13]} Qc8 {[%emt 0:00:05]} 23. f4 {
[%emt 0:00:30]} Re6 {[%emt 0:00:05]} 24. f5 {[%emt 0:00:06]} Re5 {[%emt 0:00:
17]} 25. Rf4 {[%emt 0:00:11]} Qg8 {[%emt 0:00:10]} 26. Qg6+ {[%emt 0:00:08]}
Kh8 {[%emt 0:00:02]} 27. Rh4 {[%emt 0:00:14]} Qa8 {[%emt 0:00:10]} 28. Bxh6 {
[%emt 0:00:09]} gxh6 {[%emt 0:00:02]} 29. Rxh6# {[%emt 0:00:04] TopBrownCave
won by checkmate} 1-0

[Event "Fast Chess"]
[Site "ChessKid.com"]
[Date "2020.04.29"]
[Round "2"]
[White "Li, Patrick"]
[Black "Horvath, Alexander"]
[Result "0-1"]
[ECO "C55"]
[WhiteElo "1064"]
[BlackElo "1312"]
[PlyCount "32"]
[EventDate "2020.??.??"]
[TimeControl "600"]
[WhiteClock "0:08:41"]
[BlackClock "0:07:55"]

1. e4 {[%emt 0:00:02]} e5 {[%emt 0:00:02]} 2. Nf3 {[%emt 0:00:03]} Nc6 {
[%emt 0:00:02]} 3. Nc3 {[%emt 0:00:00]} Nf6 {[%emt 0:00:02]} 4. Bc4 {[%emt 0:
00:01]} Bc5 {[%emt 0:00:03]} 5. Ng5 {[%emt 0:00:03]} Nxe4 {[%emt 0:00:12]} 6.
Ncxe4 {[%emt 0:00:05]} d5 {[%emt 0:00:02]} 7. Nxc5 {[%emt 0:00:04]} dxc4 {
[%emt 0:00:04]} 8. Qf3 $4 {[%emt 0:00:07]} Qxg5 {[%emt 0:00:04]} 9. d4 {
[%emt 0:00:04]} Qg4 {[%emt 0:00:07]} 10. Qd5 {[%emt 0:00:19]} exd4 {[%emt 0:00:
09]} 11. Qxc4 {[%emt 0:00:09]} Qxg2 {[%emt 0:00:11]} 12. Rf1 {[%emt 0:00:09]}
O-O {[%emt 0:00:04]} 13. Qb5 {[%emt 0:00:30]} Bh3 {[%emt 0:00:04]} 14. Qxb7 {
[%emt 0:00:18]} Rfe8+ {[%emt 0:00:05]} 15. Kd2 {[%emt 0:00:05]} Qxf1 {[%emt 0:
00:05]} 16. Qxc7 {[%emt 0:00:06]} Qe2# {[%emt 0:00:05] KeenOrangeTeeth won by
checkmate} 0-1

[Event "Fast Chess"]
[Site "ChessKid.com"]
[Date "2020.04.29"]
[Round "3"]
[White "Li, Patrick"]
[Black "Dai, Lana"]
[Result "1-0"]
[ECO "C55"]
[WhiteElo "1077"]
[BlackElo "1296"]
[PlyCount "37"]
[EventDate "2020.??.??"]
[TimeControl "600"]
[WhiteClock "0:07:54"]
[BlackClock "0:08:19"]

1. e4 {[%emt 0:00:02]} e5 {[%emt 0:00:02]} 2. Nf3 {[%emt 0:00:00]} Nc6 {
[%emt 0:00:02]} 3. Nc3 {[%emt 0:00:01]} Nf6 {[%emt 0:00:01]} 4. Bc4 {[%emt 0:
00:01]} h6 {[%emt 0:00:03]} 5. O-O {[%emt 0:00:02]} a6 {[%emt 0:00:07]} 6. h3 {
[%emt 0:00:10]} b5 {[%emt 0:00:02]} 7. Bb3 {[%emt 0:00:01]} b4 {[%emt 0:00:01]}
8. Nd5 {[%emt 0:00:06]} Nxd5 {[%emt 0:00:02]} 9. Bxd5 {[%emt 0:00:02]} Rb8 {
[%emt 0:00:05]} 10. Bxc6 {[%emt 0:00:06]} dxc6 {[%emt 0:00:02]} 11. Nxe5 {
[%emt 0:00:03]} c5 {[%emt 0:00:28]} 12. Nc6 {[%emt 0:00:05]} Qd7 {[%emt 0:00:
10]} 13. Nxb8 {[%emt 0:00:05]} Qd6 {[%emt 0:00:06]} 14. Qe2 {[%emt 0:00:13]}
Qg6 {[%emt 0:00:10]} 15. Qf3 {[%emt 0:00:19]} Bd6 {[%emt 0:00:14]} 16. Nc6 {
[%emt 0:00:09]} O-O {[%emt 0:00:14]} 17. Na5 {[%emt 0:00:10]} Qg5 {[%emt 0:00:
14]} 18. d4 {[%emt 0:00:03]} cxd4 {[%emt 0:00:03]} 19. Bxg5 {[%emt 0:00:03]
WideClassyQuiz won by resignation} 1-0

[Event "Fast Chess"]
[Site "ChessKid.com"]
[Date "2020.04.29"]
[Round "3"]
[White "Horvath, Alexander"]
[Black "Li, Tobias"]
[Result "1-0"]
[ECO "C55"]
[WhiteElo "1320"]
[BlackElo "1290"]
[Annotator "Ausschalten Verteidiger, Abtauschkombi"]
[PlyCount "61"]
[EventDate "2020.??.??"]
[TimeControl "600"]
[WhiteClock "0:07:14"]
[BlackClock "0:07:24"]

1. e4 {[%emt 0:00:03]} e5 {[%emt 0:00:03]} 2. Nf3 {[%emt 0:00:02]} Nc6 {
[%emt 0:00:01]} 3. Bc4 {[%emt 0:00:02]} Bc5 {[%emt 0:00:04]} 4. Nc3 {[%emt 0:
00:02]} Nf6 {[%emt 0:00:01]} 5. Ng5 {[%emt 0:00:02]} O-O {[%emt 0:00:01]} 6.
Bxf7+ {[%emt 0:00:02]} Rxf7 {[%emt 0:00:02]} 7. Nxf7 {[%emt 0:00:01]} Kxf7 {
[%emt 0:00:00]} 8. O-O {[%emt 0:00:01]} d6 {[%emt 0:00:04]} 9. d3 {[%emt 0:00:
01]} h6 {[%emt 0:00:05]} 10. Nd5 {[%emt 0:00:04]} Nxd5 {[%emt 0:00:05]} 11.
exd5 {[%emt 0:00:01]} Ne7 {[%emt 0:00:01]} 12. Qf3+ {[%emt 0:00:04]} Kg8 {
[%emt 0:00:02]} 13. Qg3 {[%emt 0:00:04]} Nxd5 {[%emt 0:00:09]} 14. Bxh6 {
[%emt 0:00:02]} Qf6 {[%emt 0:00:00]} 15. Bg5 {[%emt 0:00:07]} Qg6 {[%emt 0:00:
03]} 16. c4 {[%emt 0:00:05]} Nb6 {[%emt 0:00:07]} 17. h3 {[%emt 0:00:21]} Bd4 {
[%emt 0:00:16]} 18. Rfe1 {[%emt 0:00:04]} Bxb2 {[%emt 0:00:07]} 19. Rab1 {
[%emt 0:00:01]} Bd4 {[%emt 0:00:03]} 20. Re4 {[%emt 0:00:02]} Bf5 {[%emt 0:00:
07]} 21. Rh4 {[%emt 0:00:12]} Qf7 $2 {[%emt 0:00:22]} 22. Qf3 {[%emt 0:00:16]}
Bh7 $2 {[%emt 0:00:07]} 23. Rxh7 $4 {[%emt 0:00:12]} Kxh7 $4 {[%emt 0:00:04]}
24. Qxf7 {[%emt 0:00:03]} Kh8 {[%emt 0:00:15]} 25. Qh5+ {[%emt 0:00:15]} Kg8 {
[%emt 0:00:02]} 26. Qg6 {[%emt 0:00:12]} Rf8 {[%emt 0:00:07]} 27. Bh6 {[%emt 0:
00:03]} Bxf2+ {[%emt 0:00:12]} 28. Kh2 {[%emt 0:00:03]} Rf7 {[%emt 0:00:05]}
29. Rf1 {[%emt 0:00:07]} Bg3+ {[%emt 0:00:10]} 30. Kxg3 {[%emt 0:00:02]} Rxf1 {
[%emt 0:00:02]} 31. Qxg7# {[%emt 0:00:02] KeenOrangeTeeth won by checkmate} 1-0

[Event "Fast Chess"]
[Site "ChessKid.com"]
[Date "2020.04.30"]
[Round "1"]
[White "Sasse, Gabriel"]
[Black "Horvath, Alexander"]
[Result "0-1"]
[ECO "C50"]
[WhiteElo "1266"]
[BlackElo "1327"]
[PlyCount "86"]
[EventDate "2020.??.??"]
[TimeControl "300+50"]
[WhiteClock "0:06:13"]
[BlackClock "0:06:23"]

1. e4 {[%emt 0:00:47]} e5 {[%emt 0:00:47]} 2. Nf3 {[%emt 0:00:46]} Nc6 {
[%emt 0:00:49]} 3. Bc4 {[%emt 0:00:46]} h6 {[%emt 0:00:48]} 4. h3 {[%emt 0:00:
47]} Nf6 {[%emt 0:00:47]} 5. Nc3 {[%emt 0:00:46]} Bc5 {[%emt 0:00:47]} 6. O-O {
[%emt 0:00:48]} O-O {[%emt 0:00:47]} 7. Na4 {[%emt 0:00:52]} Na5 {[%emt 0:00:
53]} 8. Nxc5 {[%emt 0:00:47]} Nxc4 {[%emt 0:00:47]} 9. d3 {[%emt 0:00:51]} d6 {
[%emt 0:00:48]} 10. dxc4 {[%emt 0:00:47]} dxc5 {[%emt 0:00:46]} 11. Qxd8 {
[%emt 0:00:48]} Rxd8 {[%emt 0:00:47]} 12. Nxe5 {[%emt 0:00:47]} Be6 {[%emt 0:
00:49]} 13. b3 {[%emt 0:00:48]} Rd4 {[%emt 0:00:48]} 14. Bb2 {[%emt 0:00:56]}
Rxe4 {[%emt 0:00:50]} 15. Nf3 {[%emt 0:00:48]} Re2 {[%emt 0:00:57]} 16. Bxf6 {
[%emt 0:00:47]} gxf6 {[%emt 0:00:49]} 17. Rad1 {[%emt 0:00:49]} Rxc2 {[%emt 0:
00:48]} 18. Ra1 {[%emt 0:00:48]} a6 {[%emt 0:00:55]} 19. b4 {[%emt 0:00:47]}
cxb4 {[%emt 0:00:48]} 20. Nd4 {[%emt 0:00:48]} Rxc4 {[%emt 0:00:50]} 21. Nxe6 {
[%emt 0:00:47]} fxe6 {[%emt 0:00:47]} 22. Rab1 {[%emt 0:00:48]} a5 {[%emt 0:00:
49]} 23. Rfc1 {[%emt 0:00:50]} Rxc1+ {[%emt 0:00:51]} 24. Rxc1 {[%emt 0:00:47]}
c6 {[%emt 0:00:48]} 25. Rc5 {[%emt 0:00:48]} a4 {[%emt 0:00:48]} 26. Rh5 {
[%emt 0:00:51]} Kg7 {[%emt 0:00:48]} 27. Rh4 {[%emt 0:00:48]} b3 {[%emt 0:00:
48]} 28. axb3 {[%emt 0:00:48]} a3 {[%emt 0:00:53]} 29. Rg4+ {[%emt 0:00:50]}
Kh7 {[%emt 0:00:48]} 30. Rd4 {[%emt 0:00:51]} a2 {[%emt 0:00:48]} 31. Rd7+ {
[%emt 0:00:49]} Kg6 {[%emt 0:00:47]} 32. Rd1 {[%emt 0:00:54]} a1=Q {[%emt 0:00:
49]} 33. Rxa1 {[%emt 0:00:46]} Rxa1+ {[%emt 0:00:47]} 34. Kh2 {[%emt 0:00:46]}
Rb1 {[%emt 0:00:47]} 35. b4 {[%emt 0:00:48]} Rxb4 {[%emt 0:00:47]} 36. Kg3 {
[%emt 0:00:46]} c5 {[%emt 0:00:47]} 37. f3 {[%emt 0:00:46]} c4 {[%emt 0:00:47]}
38. Kg4 {[%emt 0:00:46]} c3+ {[%emt 0:00:46]} 39. f4 {[%emt 0:00:48]} c2 {
[%emt 0:00:47]} 40. h4 {[%emt 0:00:46]} c1=Q {[%emt 0:00:46]} 41. h5+ {[%emt 0:
00:46]} Kf7 {[%emt 0:00:47]} 42. Kg3 {[%emt 0:00:49]} Qxf4+ {[%emt 0:00:48]}
43. Kh3 {[%emt 0:00:47]} Qh4# {[%emt 0:00:48] KeenOrangeTeeth won by checkmate}
0-1

[Event "Fast Chess"]
[Site "ChessKid.com"]
[Date "2020.04.30"]
[Round "1"]
[White "Dai, Lana"]
[Black "Halimi, Dorian"]
[Result "1-0"]
[ECO "B01"]
[WhiteElo "1314"]
[BlackElo "1111"]
[Annotator "Grundlinienmatt"]
[PlyCount "65"]
[EventDate "2020.??.??"]
[TimeControl "300+50"]
[WhiteClock "0:05:13"]
[BlackClock "0:04:11"]

1. e4 {[%emt 0:00:49]} d5 {[%emt 0:00:48]} 2. exd5 {[%emt 0:00:48]} Qxd5 {
[%emt 0:00:46]} 3. Nc3 {[%emt 0:00:46]} Qe5+ {[%emt 0:00:47]} 4. Qe2 {[%emt 0:
00:50]} Qxe2+ {[%emt 0:00:47]} 5. Bxe2 {[%emt 0:00:46]} Nf6 {[%emt 0:00:46]} 6.
Nf3 {[%emt 0:00:47]} Nc6 {[%emt 0:00:47]} 7. d3 {[%emt 0:00:46]} Bg4 {[%emt 0:
00:47]} 8. Bf4 {[%emt 0:00:50]} O-O-O {[%emt 0:00:50]} 9. O-O-O {[%emt 0:00:48]
} Bxf3 {[%emt 0:00:46]} 10. Bxf3 {[%emt 0:00:47]} Nd4 {[%emt 0:00:48]} 11. Be4
{[%emt 0:00:57]} Ng4 {[%emt 0:00:58]} 12. Be3 {[%emt 0:01:04]} e6 {[%emt 0:00:
55]} 13. f3 {[%emt 0:00:55]} Nxe3 {[%emt 0:00:47]} 14. Rdg1 {[%emt 0:01:00]}
Ne2+ {[%emt 0:00:53]} 15. Nxe2 {[%emt 0:00:50]} Bc5 {[%emt 0:00:49]} 16. Kb1 {
[%emt 0:01:04]} Nf5 {[%emt 0:00:52]} 17. Re1 {[%emt 0:00:59]} Bf2 {[%emt 0:00:
50]} 18. Ref1 {[%emt 0:00:48]} Be3 {[%emt 0:00:53]} 19. g4 {[%emt 0:00:54]} Nd4
{[%emt 0:00:51]} 20. Nxd4 {[%emt 0:00:48]} Bxd4 {[%emt 0:00:47]} 21. f4 {
[%emt 0:00:51]} e5 {[%emt 0:00:49]} 22. Bf5+ {[%emt 0:00:49]} Kb8 {[%emt 0:00:
50]} 23. fxe5 {[%emt 0:00:47]} f6 {[%emt 0:00:55]} 24. exf6 {[%emt 0:00:48]}
Bxf6 {[%emt 0:00:49]} 25. Re1 {[%emt 0:00:58]} Rhe8 {[%emt 0:00:52]} 26. Rxe8 {
[%emt 0:00:47]} Rxe8 {[%emt 0:00:48]} 27. Bd7 {[%emt 0:00:46]} Re7 {[%emt 0:00:
51]} 28. Bf5 {[%emt 0:00:50]} Bd4 {[%emt 0:00:50]} 29. Bxh7 {[%emt 0:00:54]}
Bf2 {[%emt 0:00:47]} 30. Rf1 {[%emt 0:00:52]} Re2 {[%emt 0:00:52]} 31. g5 {
[%emt 0:01:02]} Be1 {[%emt 0:00:48]} 32. Rf8+ {[%emt 0:00:54]} Re8 {[%emt 0:00:
50]} 33. Rxe8# {[%emt 0:00:46] TopBrownCave won by checkmate} 1-0

[Event "Fast Chess"]
[Site "ChessKid.com"]
[Date "2020.04.30"]
[Round "1"]
[White "Li, Patrick"]
[Black "Li, Tobias"]
[Result "1/2-1/2"]
[ECO "C55"]
[WhiteElo "1099"]
[BlackElo "1275"]
[PlyCount "65"]
[EventDate "2020.??.??"]
[TimeControl "300+50"]
[WhiteClock "0:04:14"]
[BlackClock "0:04:33"]

1. e4 {[%emt 0:00:48]} e5 {[%emt 0:00:48]} 2. Nf3 {[%emt 0:00:45]} Nc6 {
[%emt 0:00:47]} 3. Nc3 {[%emt 0:00:46]} Bc5 {[%emt 0:00:48]} 4. Bc4 {[%emt 0:
00:45]} Nf6 {[%emt 0:00:48]} 5. O-O {[%emt 0:00:47]} O-O {[%emt 0:00:47]} 6.
Nd5 {[%emt 0:00:49]} Nxd5 {[%emt 0:00:49]} 7. Bxd5 {[%emt 0:00:49]} d6 {
[%emt 0:00:52]} 8. Ng5 {[%emt 0:00:51]} Qxg5 {[%emt 0:00:58]} 9. d4 {[%emt 0:
00:48]} Qg6 {[%emt 0:00:53]} 10. dxc5 {[%emt 0:00:52]} dxc5 {[%emt 0:00:47]}
11. Bc4 {[%emt 0:01:04]} Bh3 {[%emt 0:00:51]} 12. Qf3 {[%emt 0:00:50]} Bg4 {
[%emt 0:00:57]} 13. Qg3 {[%emt 0:00:47]} Nd4 {[%emt 0:00:57]} 14. h3 {[%emt 0:
00:55]} Be2 {[%emt 0:00:55]} 15. Re1 {[%emt 0:01:05]} Bxc4 {[%emt 0:00:48]} 16.
Qxe5 {[%emt 0:00:50]} b6 {[%emt 0:01:01]} 17. Qe7 {[%emt 0:00:53]} Rab8 {
[%emt 0:00:45]} 18. Qxc7 {[%emt 0:00:53]} Ne2+ {[%emt 0:00:56]} 19. Kh1 {
[%emt 0:00:50]} Nxc1 {[%emt 0:00:47]} 20. Raxc1 {[%emt 0:00:48]} Ra8 {[%emt 0:
00:49]} 21. b3 {[%emt 0:00:55]} Ba6 {[%emt 0:00:48]} 22. Qe7 {[%emt 0:00:52]}
Rfe8 {[%emt 0:00:50]} 23. Qh4 {[%emt 0:00:50]} Bb7 {[%emt 0:00:49]} 24. f3 {
[%emt 0:00:50]} h6 {[%emt 0:01:13]} 25. Rcd1 {[%emt 0:00:56]} Rad8 {[%emt 0:00:
54]} 26. Rxd8 {[%emt 0:00:49]} Rxd8 {[%emt 0:00:47]} 27. Qxd8+ {[%emt 0:00:47]}
Kh7 {[%emt 0:00:48]} 28. Qd3 {[%emt 0:00:50]} Qe6 {[%emt 0:00:57]} 29. e5+ {
[%emt 0:00:53]} Kg8 {[%emt 0:00:51]} 30. Qd8+ {[%emt 0:00:49]} Kh7 {[%emt 0:00:
48]} 31. Qd3+ {[%emt 0:00:56]} Kg8 {[%emt 0:00:53]} 32. Qd8+ {[%emt 0:00:50]}
Kh7 {[%emt 0:00:47]} 33. Qd3+ {[%emt 0:00:47] Game drawn by repetition} 1/2-1/2

[Event "Fast Chess"]
[Site "ChessKid.com"]
[Date "2020.04.30"]
[Round "2"]
[White "Horvath, Alexander"]
[Black "Fennesz, Moritz"]
[Result "1-0"]
[ECO "C40"]
[WhiteElo "1329"]
[BlackElo "965"]
[Annotator "Eröffnungsfehler, Springergabel"]
[PlyCount "47"]
[EventDate "2020.??.??"]
[TimeControl "300+50"]
[WhiteClock "0:04:47"]
[BlackClock "0:04:39"]

1. e4 {[%emt 0:00:48]} e5 {[%emt 0:00:48]} 2. Nf3 {[%emt 0:00:47]} b5 {[%emt 0:
00:47]} 3. Bxb5 {[%emt 0:00:49]} Bb7 {[%emt 0:00:48]} 4. Nxe5 {[%emt 0:00:49]}
g6 {[%emt 0:00:48]} 5. Nc3 {[%emt 0:00:48]} Bg7 {[%emt 0:00:47]} 6. Bxd7+ {
[%emt 0:00:48]} Nxd7 {[%emt 0:00:55]} 7. Nxd7 {[%emt 0:00:47]} Kxd7 {[%emt 0:
00:48]} 8. Qg4+ {[%emt 0:00:54]} Ke8 {[%emt 0:00:49]} 9. O-O {[%emt 0:00:48]}
Qd4 {[%emt 0:00:54]} 10. Nb5 {[%emt 0:00:56]} Qc4 {[%emt 0:00:53]} 11. a4 {
[%emt 0:00:58]} Qe6 {[%emt 0:01:04]} 12. Nxc7+ {[%emt 0:00:50]} Ke7 {[%emt 0:
00:55]} 13. Nxe6 {[%emt 0:00:47]} fxe6 {[%emt 0:00:48]} 14. d3 {[%emt 0:00:50]}
Ba6 {[%emt 0:00:50]} 15. Bg5+ {[%emt 0:00:49]} Kd6 {[%emt 0:00:53]} 16. Qf3 {
[%emt 0:00:57]} Rc8 {[%emt 0:00:45]} 17. e5+ {[%emt 0:00:53]} Kxe5 {[%emt 0:00:
50]} 18. Rfe1+ {[%emt 0:00:53]} Kd4 {[%emt 0:00:50]} 19. Be3+ {[%emt 0:00:47]}
Ke5 {[%emt 0:00:48]} 20. Bxa7+ {[%emt 0:00:50]} Kd6 {[%emt 0:00:58]} 21. Qf4+ {
[%emt 0:00:58]} Ke7 {[%emt 0:00:49]} 22. Qe3 {[%emt 0:00:56]} Rxc2 {[%emt 0:00:
49]} 23. Qxe6+ {[%emt 0:00:51]} Kf8 {[%emt 0:00:49]} 24. Qe8# {[%emt 0:00:50]
KeenOrangeTeeth won by checkmate} 1-0

[Event "Fast Chess"]
[Site "ChessKid.com"]
[Date "2020.04.30"]
[Round "2"]
[White "Li, Tobias"]
[Black "Dai, Lana"]
[Result "1-0"]
[ECO "C55"]
[WhiteElo "1284"]
[BlackElo "1306"]
[PlyCount "119"]
[EventDate "2020.??.??"]
[TimeControl "300+50"]
[WhiteClock "0:04:54"]
[BlackClock "0:05:12"]

1. e4 {[%emt 0:00:47]} e5 {[%emt 0:00:47]} 2. Nf3 {[%emt 0:00:45]} Nc6 {
[%emt 0:00:46]} 3. Nc3 {[%emt 0:00:47]} Nf6 {[%emt 0:00:47]} 4. Bc4 {[%emt 0:
00:46]} h6 {[%emt 0:00:47]} 5. O-O {[%emt 0:00:49]} Bc5 {[%emt 0:00:51]} 6. h3
{[%emt 0:00:47]} a6 {[%emt 0:00:47]} 7. a3 {[%emt 0:00:50]} b5 {[%emt 0:00:46]}
8. Bd5 {[%emt 0:00:47]} Nxd5 {[%emt 0:00:51]} 9. exd5 {[%emt 0:00:50]} b4 {
[%emt 0:00:56]} 10. a4 {[%emt 0:00:50]} bxc3 {[%emt 0:00:49]} 11. dxc6 {
[%emt 0:00:46]} cxb2 {[%emt 0:00:50]} 12. cxd7+ {[%emt 0:00:48]} Qxd7 {[%emt 0:
00:49]} 13. Bxb2 {[%emt 0:00:46]} Bd6 {[%emt 0:00:55]} 14. Nxe5 {[%emt 0:00:51]
} Bxe5 {[%emt 0:00:48]} 15. Bxe5 {[%emt 0:00:48]} O-O {[%emt 0:00:47]} 16. Bb2
{[%emt 0:00:59]} Qe6 {[%emt 0:00:48]} 17. Re1 {[%emt 0:00:51]} Qg6 {[%emt 0:00:
52]} 18. Qf3 {[%emt 0:00:48]} c6 {[%emt 0:00:55]} 19. c3 {[%emt 0:01:00]} Rb8 {
[%emt 0:00:48]} 20. Ba3 {[%emt 0:00:49]} Rd8 {[%emt 0:00:56]} 21. Be7 {[%emt 0:
00:53]} Re8 {[%emt 0:00:51]} 22. Ba3 {[%emt 0:00:47]} Rd8 {[%emt 0:00:47]} 23.
Re7 {[%emt 0:01:17]} Bb7 {[%emt 0:00:59]} 24. Rb1 {[%emt 0:00:52]} c5 {[%emt 0:
00:52]} 25. Rbxb7 {[%emt 0:00:55]} Rxb7 {[%emt 0:00:46]} 26. Rxb7 {[%emt 0:00:
50]} c4 {[%emt 0:00:48]} 27. Re7 {[%emt 0:01:00]} Qb1+ {[%emt 0:00:54]} 28. Kh2
{[%emt 0:00:51]} Qb8+ {[%emt 0:00:50]} 29. Kh1 {[%emt 0:00:57]} Qb1+ {[%emt 0:
00:59]} 30. Kh2 {[%emt 0:00:49]} Qb8+ {[%emt 0:00:47]} 31. Qg3 {[%emt 0:00:49]}
Qxg3+ {[%emt 0:00:47]} 32. Kxg3 {[%emt 0:00:47]} Rxd2 {[%emt 0:00:53]} 33. Re8+
{[%emt 0:00:56]} Kh7 {[%emt 0:00:47]} 34. Re7 {[%emt 0:00:57]} Rc2 {[%emt 0:00:
52]} 35. Bb4 {[%emt 0:00:53]} Ra2 {[%emt 0:00:53]} 36. Rxf7 {[%emt 0:00:49]}
Rxa4 {[%emt 0:00:47]} 37. Ra7 {[%emt 0:00:53]} a5 {[%emt 0:00:57]} 38. Rxa5 {
[%emt 0:00:50]} Rxa5 {[%emt 0:00:46]} 39. Bxa5 {[%emt 0:00:46]} Kg6 {[%emt 0:
00:48]} 40. Kf4 {[%emt 0:00:46]} Kf6 {[%emt 0:00:48]} 41. Ke4 {[%emt 0:00:46]}
g5 {[%emt 0:00:51]} 42. Kd4 {[%emt 0:00:48]} Kf5 {[%emt 0:00:46]} 43. Kxc4 {
[%emt 0:00:46]} h5 {[%emt 0:00:46]} 44. Kd3 {[%emt 0:00:46]} g4 {[%emt 0:00:48]
} 45. hxg4+ {[%emt 0:00:47]} Kxg4 {[%emt 0:00:47]} 46. Ke3 {[%emt 0:00:46]} h4
{[%emt 0:00:47]} 47. c4 {[%emt 0:00:47]} h3 {[%emt 0:00:55]} 48. c5 {[%emt 0:
00:45]} hxg2 {[%emt 0:00:47]} 49. f3+ {[%emt 0:00:56]} Kg3 {[%emt 0:00:49]} 50.
Bc7+ {[%emt 0:00:49]} Kh3 {[%emt 0:00:51]} 51. Kf2 {[%emt 0:00:49]} g1=Q+ {
[%emt 0:01:20]} 52. Kxg1 {[%emt 0:00:49]} Kh4 {[%emt 0:00:49]} 53. Ba5 {
[%emt 0:00:47]} Kg5 {[%emt 0:00:47]} 54. c6 {[%emt 0:00:47]} Kf6 {[%emt 0:00:
47]} 55. c7 {[%emt 0:00:45]} Kf5 {[%emt 0:00:47]} 56. c8=Q+ {[%emt 0:00:45]}
Kf4 {[%emt 0:00:46]} 57. Qg4+ {[%emt 0:00:48]} Ke3 {[%emt 0:00:47]} 58. Bb6+ {
[%emt 0:00:47]} Ke2 {[%emt 0:00:48]} 59. Qe4+ {[%emt 0:00:47]} Kd1 {[%emt 0:00:
53]} 60. f4 {[%emt 0:00:49] OnlyHungryKiwi won by resignation} 1-0